bitfinex/quotes_BTCUSD_20241111
["timestamp","ask_amount","ask_price","bid_price","bid_amount"]
[1731287041653,0.28014345,80556.0,80555.0,0.000842]
[1731287042024,0.03006424,80556.0,80555.0,0.000842]
[1731287042270,0.15420124,80556.0,80555.0,0.000842]
[1731287042610,0.13120124,80556.0,80555.0,0.000842]
[1731287043664,0.15420124,80556.0,80555.0,0.000842]
[1731287044404,0.02506424,80556.0,80555.0,0.000842]
[1731287044608,0.00206424,80556.0,80555.0,0.000842]
[1731287044802,0.00206424,80556.0,80555.0,0.12498]
[1731287045032,0.005,80558.0,80557.0,0.124135]
[1731287045435,0.005,80558.0,80555.0,0.000842]
[1731287045819,0.00374824,80560.0,80559.0,0.124132]
[1731287045963,0.005,80558.0,80555.0,0.000842]
[1731287046389,0.005,80558.0,80555.0,0.249117]
[1731287046558,0.005,80558.0,80555.0,0.000842]
[1731287047000,0.14920124,80556.0,80555.0,0.000842]
[1731287047216,0.15420124,80556.0,80555.0,0.000842]
[1731287049601,0.03006424,80556.0,80555.0,0.000842]
[1731287049817,0.15420124,80556.0,80555.0,0.000842]
[1731287050834,0.03006424,80556.0,80555.0,0.000842]
[1731287051723,0.15420124,80556.0,80555.0,0.000842]
[1731287053368,0.03006424,80556.0,80555.0,0.000842]
[1731287055268,0.15420124,80556.0,80555.0,0.000842]
[1731287055472,0.00206424,80553.0,80552.0,0.124142]
[1731287055672,0.028,80553.0,80552.0,0.124142]
[1731287055898,0.00206424,80547.0,80546.0,0.124152]
[1731287056297,0.00706424,80551.0,80528.0,0.05549282]
[1731287056451,0.028,80551.0,80550.0,0.124146]
[1731287056840,0.028,80551.0,80548.0,0.248296]
[1731287056841,0.00206424,80549.0,80548.0,0.248296]
[1731287056957,0.00206424,80549.0,80548.0,0.124148]
[1731287057153,0.00206424,80547.0,80546.0,0.124152]
[1731287057571,0.00206424,80549.0,80548.0,0.124148]
[1731287058310,0.00706424,80551.0,80550.0,0.124146]
[1731287058520,0.00706424,80552.0,80551.0,0.124144]
[1731287058736,0.00706424,80552.0,80548.0,0.248299]
[1731287059099,0.00206424,80549.0,80548.0,0.372447]
[1731287059298,0.00206424,80549.0,80548.0,0.372448]
[1731287060435,0.00206424,80550.0,80548.0,0.372448]
[1731287060811,0.00206424,80549.0,80548.0,0.372448]
[1731287062268,0.00706424,80552.0,80551.0,0.124144]
[1731287062500,0.023,80552.0,80551.0,0.124144]
[1731287062695,0.024684,80559.0,80558.0,0.124134]
[1731287062872,0.001684,80559.0,80558.0,0.124134]
[1731287064448,0.001684,80559.0,80552.0,0.293585]
[1731287064449,0.00206424,80552.0,80542.0,0.0453]
[1731287064677,0.005,80556.0,80540.0,0.101404]
[1731287064678,0.248296,80549.0,80541.0,0.0221386]
[1731287064898,0.00206424,80547.0,80541.0,0.0221386]
[1731287065122,0.147158,80542.0,80541.0,0.0221386]
[1731287065520,0.14716,80541.0,80540.0,0.001404]
[1731287065724,0.14922424,80541.0,80540.0,0.001404]
[1731287065928,0.37958951,80541.0,80540.0,0.001404]
[1731287066127,0.3154212,80541.0,80540.0,0.001404]
[1731287066350,0.23172424,80541.0,80540.0,0.001404]
[1731287066526,0.25412521,80541.0,80540.0,0.001404]
[1731287066730,0.38006742,80541.0,80540.0,0.001404]
[1731287066926,0.52673573,80541.0,80540.0,0.001404]
[1731287067243,0.50867504,80541.0,80540.0,0.001404]
[1731287067442,0.50667504,80541.0,80540.0,0.001404]
[1731287068268,0.67811399,80541.0,80540.0,0.001404]
[1731287068497,0.68011399,80541.0,80540.0,0.001404]
[1731287068701,0.39832724,80539.0,80538.0,0.001404]
[1731287068855,0.53787707,80539.0,80538.0,0.001404]
[1731287069727,0.53587707,80539.0,80538.0,0.001404]
[1731287070344,0.53787707,80539.0,80538.0,0.001404]
[1731287070573,0.53587707,80539.0,80538.0,0.001404]
[1731287072006,0.66181928,80539.0,80538.0,0.001404]
[1731287072418,0.51631443,80539.0,80538.0,0.001404]
[1731287072689,0.52788796,80539.0,80538.0,0.001404]
[1731287073135,0.49084298,80539.0,80538.0,0.001404]
[1731287074408,0.47926945,80539.0,80538.0,0.001404]
[1731287075136,0.48126945,80539.0,80538.0,0.001404]
[1731287075586,0.47926945,80539.0,80538.0,0.001404]
[1731287075950,0.47895904,80539.0,80538.0,0.001404]
[1731287079496,0.42905904,80539.0,80538.0,0.001404]
[1731287080823,0.32814221,80539.0,80538.0,0.001404]
[1731287081272,0.45230521,80539.0,80538.0,0.001404]
[1731287084631,0.37310521,80539.0,80538.0,0.001404]
[1731287090866,0.37510521,80539.0,80538.0,0.001404]
[1731287091428,0.3866818,80539.0,80538.0,0.001404]
[1731287091626,0.3846818,80539.0,80538.0,0.001404]
[1731287094142,0.37478921,80539.0,80538.0,0.001404]
[1731287094553,0.38639375,80539.0,80538.0,0.001404]
[1731287095128,0.51269375,80539.0,80538.0,0.001404]
[1731287095677,0.51069375,80539.0,80538.0,0.001404]
[1731287096524,0.46569375,80539.0,80538.0,0.001404]
[1731287096879,0.46769375,80539.0,80538.0,0.001404]
[1731287097644,0.46770705,80539.0,80538.0,0.001404]
[1731287098052,0.46770705,80539.0,80531.0,1e-06]
[1731287098053,0.124174,80532.0,80531.0,1e-06]
[1731287098210,0.204575,80531.0,80530.0,1e-06]
[1731287098405,0.34013505,80531.0,80530.0,1e-06]
[1731287098592,0.44013505,80531.0,80530.0,1e-06]
[1731287098813,0.47714217,80531.0,80530.0,1e-06]
[1731287099397,0.47914217,80531.0,80530.0,1e-06]
[1731287100193,0.47913745,80531.0,80530.0,1e-06]
[1731287100735,0.47713745,80531.0,80530.0,1e-06]
[1731287100941,0.46552433,80531.0,80530.0,1e-06]
[1731287101160,0.47713711,80531.0,80530.0,1e-06]
[1731287101560,0.49895936,80531.0,80530.0,1e-06]
[1731287101767,0.48734658,80531.0,80530.0,1e-06]
[1731287102079,0.46195143,80531.0,80530.0,1e-06]
[1731287102223,0.55894126,80531.0,80530.0,1e-06]
[1731287102855,0.56094126,80531.0,80530.0,1e-06]
[1731287103066,0.59596004,80531.0,80530.0,1e-06]
[1731287103269,0.55894126,80531.0,80530.0,1e-06]
[1731287103467,0.56094126,80531.0,80530.0,1e-06]
[1731287103874,0.57951296,80531.0,80530.0,1e-06]
[1731287104483,0.57751296,80531.0,80530.0,1e-06]
[1731287104897,0.48052313,80531.0,80530.0,1e-06]
[1731287105715,0.51755532,80531.0,80530.0,1e-06]
[1731287105892,0.48052313,80531.0,80530.0,1e-06]
[1731287106092,0.46195143,80531.0,80530.0,1e-06]
[1731287106681,0.28355143,80531.0,80530.0,1e-06]
[1731287107932,0.27193946,80531.0,80530.0,1e-06]
[1731287108094,0.37193946,80531.0,80530.0,1e-06]
[1731287109505,0.124175,80531.0,80530.0,1e-06]
[1731287109971,0.03871619,80539.0,80531.0,0.005]
[1731287110156,0.03871619,80539.0,80534.0,0.005]
[1731287110157,0.001684,80539.0,80534.0,0.005]
[1731287110399,0.001684,80539.0,80536.0,0.005]
[1731287110400,0.124166,80537.0,80536.0,0.005]
[1731287110883,0.001684,80539.0,80538.0,0.129164]
[1731287111085,0.001684,80539.0,80538.0,0.182764]
[1731287111518,0.001684,80539.0,80538.0,0.0536]
[1731287111691,0.125847,80539.0,80538.0,0.0536]
[1731287112114,0.125847,80539.0,80538.0,0.005]
[1731287112325,0.124175,80531.0,80530.0,0.076801]
[1731287112489,0.124175,80531.0,80530.0,1e-06]
[1731287112846,0.39178552,80531.0,80530.0,1e-06]
[1731287113684,0.52889951,80531.0,80530.0,1e-06]
[1731287113884,0.54745651,80531.0,80530.0,1e-06]
[1731287114104,0.55905103,80531.0,80530.0,1e-06]
[1731287114308,0.60177336,80531.0,80530.0,1e-06]
[1731287114520,0.73880291,80531.0,80530.0,1e-06]
[1731287115065,0.75735602,80531.0,80530.0,1e-06]
[1731287115753,0.72720839,80531.0,80530.0,1e-06]
[1731287115995,0.68095818,80531.0,80530.0,1e-06]
[1731287116179,0.52073615,80531.0,80530.0,1e-06]
[1731287116381,0.3837066,80531.0,80530.0,1e-06]
[1731287117509,0.3853886,80531.0,80530.0,1e-06]
[1731287118187,0.4083886,80531.0,80530.0,1e-06]
[1731287118594,0.44550769,80531.0,80530.0,1e-06]
[1731287119166,0.44550925,80531.0,80530.0,1e-06]
[1731287120168,0.38639684,80531.0,80530.0,1e-06]
[1731287121290,0.28639684,80531.0,80530.0,1e-06]
[1731287121492,0.27479921,80531.0,80530.0,1e-06]
[1731287122777,0.35009921,80531.0,80530.0,1e-06]
[1731287122889,0.36169774,80531.0,80530.0,1e-06]
[1731287123088,0.39881636,80531.0,80530.0,1e-06]
[1731287124492,0.49881636,80531.0,80530.0,1e-06]
[1731287124699,0.124208,80510.0,80509.0,0.000841]
[1731287124904,0.27315021,80510.0,80509.0,0.000841]
[1731287126751,0.124208,80510.0,80509.0,0.000841]
[1731287127561,0.147208,80510.0,80509.0,0.000841]
[1731287128419,0.27315021,80510.0,80509.0,0.000841]
[1731287131519,0.35014623,80510.0,80509.0,0.000841]
[1731287131719,0.27807551,80510.0,80509.0,0.000841]
[1731287131936,0.28967688,80510.0,80509.0,0.000841]
[1731287133577,0.31177979,80510.0,80509.0,0.000841]
[1731287133917,0.41177979,80510.0,80509.0,0.000841]
[1731287134118,0.31177979,80510.0,80509.0,0.000841]
[1731287135081,0.30017842,80510.0,80509.0,0.000841]
[1731287136229,0.40582344,80510.0,80509.0,0.000841]
[1731287136433,0.62353285,80510.0,80509.0,0.000841]
[1731287136676,0.124211,80508.0,80507.0,0.000841]
[1731287136878,0.124232,80494.0,80493.0,0.18613539]
[1731287137078,0.124232,80494.0,80480.0,0.18613539]
[1731287137079,0.147252,80481.0,80480.0,0.18613539]
[1731287137287,0.27319421,80481.0,80480.0,0.18613539]
[1731287137462,0.124262,80475.0,80474.0,0.001406]
[1731287137874,0.129029,80475.0,80474.0,0.006406]
[1731287138074,0.152029,80475.0,80474.0,0.006406]
[1731287138612,0.152029,80475.0,80474.0,0.001406]
[1731287139322,0.27797121,80475.0,80474.0,0.001406]
[1731287143855,0.35337121,80475.0,80474.0,0.001406]
[1731287144440,0.40303449,80475.0,80474.0,0.001406]
[1731287144648,0.35337121,80475.0,80474.0,0.001406]
[1731287147628,0.27797121,80475.0,80474.0,0.001406]
[1731287148075,0.25661666,80475.0,80474.0,0.001406]
[1731287148266,0.13235466,80475.0,80474.0,0.001406]
[1731287149270,0.25661666,80475.0,80474.0,0.001406]
[1731287150417,0.13235466,80475.0,80474.0,0.001406]
[1731287150708,0.00641245,80475.0,80474.0,0.001406]
[1731287151008,0.18613539,80482.0,80474.0,0.001406]
[1731287151207,0.124261,80476.0,80474.0,0.001406]
[1731287151408,0.38084948,80481.0,80474.0,0.001406]
[1731287151747,0.00639742,80475.0,80474.0,0.001406]
[1731287151903,0.124262,80476.0,80474.0,0.001406]
[1731287152082,0.13065942,80475.0,80474.0,0.001406]
[1731287153117,0.47656994,80475.0,80474.0,0.001406]
[1731287154012,0.33490163,80475.0,80474.0,0.001406]
[1731287154568,0.25660163,80475.0,80474.0,0.001406]
[1731287158189,0.124286,80460.0,80454.0,0.129294]
[1731287158415,0.00638681,80459.0,80449.0,0.001406]
[1731287158740,0.00638681,80459.0,80449.0,0.006406]
[1731287158942,0.248579,80457.0,80449.0,0.006406]
[1731287159259,0.124293,80455.0,80449.0,0.130707]
[1731287159665,0.00638277,80454.0,80449.0,0.130707]
[1731287160331,0.00638277,80454.0,80449.0,0.006406]
[1731287160530,0.00638277,80454.0,80449.0,0.130707]
[1731287160731,0.124291,80456.0,80451.0,0.124298]
[1731287160931,0.00638197,80453.0,80449.0,0.255008]
[1731287161132,0.12594221,80460.0,80449.0,0.006406]
[1731287161342,0.00638116,80452.0,80451.0,0.124299]
[1731287161519,0.124291,80457.0,80451.0,0.124299]
[1731287161855,0.18613539,80459.0,80454.0,0.124293]
[1731287161856,0.00638439,80456.0,80454.0,0.124293]
[1731287162161,0.00638439,80456.0,80451.0,0.124298]
[1731287162429,0.00638358,80455.0,80451.0,0.124298]
[1731287162596,0.13067758,80455.0,80449.0,0.006406]
[1731287162828,0.00638358,80455.0,80450.0,0.248601]
[1731287163063,0.00638358,80455.0,80451.0,0.124299]
[1731287163266,0.124288,80458.0,80452.0,0.124296]
[1731287163465,0.00637611,80454.0,80452.0,0.124296]
[1731287163625,0.18613539,80459.0,80452.0,0.124296]
[1731287163833,0.00637531,80453.0,80452.0,0.124297]
[1731287164034,0.124281,80463.0,80452.0,0.248595]
[1731287164232,0.31041739,80462.0,80456.0,0.12429]
[1731287164437,0.124285,80460.0,80454.0,0.129293]
[1731287164632,0.124285,80460.0,80455.0,0.124292]
[1731287164841,0.00635801,80459.0,80458.0,0.124288]
[1731287165181,0.372834,80465.0,80459.0,0.124286]
[1731287165182,0.372833,80465.0,80459.0,0.124286]
[1731287165342,0.372833,80465.0,80456.0,0.248583]
[1731287165343,0.37449721,80465.0,80456.0,0.248583]
[1731287165680,0.124281,80463.0,80457.0,0.124289]
[1731287165890,0.37449721,80465.0,80457.0,0.248577]
[1731287165891,0.12594221,80465.0,80457.0,0.248577]
[1731287166087,0.43467439,80471.0,80459.0,0.124286]
[1731287166231,0.12594221,80470.0,80459.0,0.0454]
[1731287166435,0.18613539,80475.0,80462.0,0.005]
[1731287166681,0.12594221,80474.0,80463.0,0.248561]
[1731287166933,0.00636281,80474.0,80473.0,0.124265]
[1731287167133,0.0819,80483.0,80469.0,0.124271]
[1731287167338,0.18613539,80476.0,80459.0,0.005]
[1731287167545,0.12594221,80482.0,80460.0,0.18613539]
[1731287167546,0.0819,80464.0,80460.0,0.18613539]
[1731287167751,0.124283,80461.0,80460.0,0.18613539]
[1731287167949,0.124292,80456.0,80451.0,0.005]
[1731287168173,0.00634747,80455.0,80451.0,0.005]
[1731287168380,0.00634747,80455.0,80450.0,0.1243]
[1731287168381,0.1243,80450.0,80449.0,0.001406]
[1731287168580,0.13064343,80450.0,80449.0,0.001406]
[1731287173277,0.16064343,80450.0,80449.0,0.001406]
[1731287180607,0.28658564,80450.0,80449.0,0.001406]
[1731287181047,0.38468564,80450.0,80449.0,0.001406]
[1731287184862,0.44066259,80450.0,80449.0,0.001406]
[1731287185064,0.49468564,80450.0,80449.0,0.001406]
[1731287185754,0.53265047,80450.0,80449.0,0.001406]
[1731287186727,0.49468564,80450.0,80449.0,0.001406]
[1731287187522,0.51900583,80450.0,80449.0,0.001406]
[1731287188623,0.38468564,80450.0,80449.0,0.001406]
[1731287190348,0.03634343,80450.0,80449.0,0.001406]
[1731287190512,0.03634343,80450.0,80449.0,0.27237631]
[1731287190713,0.03852499,80450.0,80449.0,0.006406]
[1731287190913,0.03,80450.0,80449.0,0.130708]
[1731287191644,0.03,80450.0,80449.0,0.006406]
[1731287192355,0.03,80450.0,80449.0,0.130708]
[1731287193091,0.001684,80456.0,80455.0,0.159293]
[1731287193307,0.001684,80457.0,80456.0,0.159291]
[1731287193501,0.001684,80457.0,80456.0,0.20917659]
[1731287193786,0.001684,80457.0,80456.0,0.206691]
[1731287196078,0.001684,80457.0,80456.0,0.2091767]
[1731287196304,0.001684,80457.0,80456.0,0.206691]
[1731287198535,0.031684,80457.0,80456.0,0.206691]
[1731287201605,0.001684,80457.0,80456.0,0.35084494]
[1731287201834,0.031684,80457.0,80456.0,0.206691]
[1731287202064,0.031684,80457.0,80456.0,0.159291]
[1731287204471,0.031684,80457.0,80456.0,0.03]
[1731287204926,0.031684,80457.0,80454.0,0.124294]
[1731287205142,0.04110675,80457.0,80454.0,0.124294]
[1731287205377,0.04110675,80457.0,80454.0,0.02174646]
[1731287205580,0.04110675,80457.0,80456.0,0.005]
[1731287205780,0.04110675,80457.0,80456.0,0.124291]
[1731287205917,0.154297,80452.0,80451.0,0.02210199]
[1731287206344,0.16371033,80452.0,80451.0,0.02210199]
[1731287206546,0.03941333,80452.0,80449.0,0.001406]
[1731287206748,0.03,80450.0,80449.0,0.001406]
[1731287207164,0.1543,80450.0,80449.0,0.001406]
[1731287207459,0.16370956,80450.0,80449.0,0.001406]
[1731287207683,0.24100956,80450.0,80449.0,0.001406]
[1731287208333,0.36695177,80450.0,80449.0,0.001406]
[1731287208539,0.50862008,80450.0,80449.0,0.001406]
[1731287209849,0.55852008,80450.0,80449.0,0.001406]
[1731287210064,0.65852008,80450.0,80449.0,0.001406]
[1731287215509,0.78127444,80450.0,80449.0,0.001406]
[1731287215726,0.66852008,80450.0,80449.0,0.001406]
[1731287215930,0.70268296,80450.0,80449.0,0.001406]
[1731287217819,0.70268296,80450.0,80428.0,0.001406]
[1731287217820,0.154333,80429.0,80428.0,0.001406]
[1731287218012,0.36669691,80429.0,80428.0,0.001406]
[1731287218267,0.46669691,80429.0,80428.0,0.001406]
[1731287219803,0.80450061,80429.0,80428.0,0.001406]
[1731287220077,1.00814042,80429.0,80428.0,0.001406]
[1731287220249,0.50814042,80429.0,80428.0,0.001406]
[1731287220482,0.52971827,80429.0,80428.0,0.001406]
[1731287221110,0.51971827,80429.0,80428.0,0.001406]
[1731287221326,0.38827476,80429.0,80428.0,0.001406]
[1731287221534,0.38827476,80429.0,80412.0,0.001406]
[1731287221535,0.03,80428.0,80412.0,0.001406]
[1731287221745,0.03,80424.0,80416.0,0.248706]
[1731287221952,0.03,80422.0,80416.0,0.248706]
[1731287222178,0.03,80422.0,80415.0,0.001406]
[1731287222410,0.03,80420.0,80415.0,0.001406]
[1731287222619,0.03,80420.0,80419.0,0.001406]
[1731287222834,0.03,80420.0,80419.0,0.125754]
[1731287223809,0.03,80420.0,80419.0,0.37445]
[1731287224021,0.03,80420.0,80419.0,0.39621668]
[1731287224457,0.03,80420.0,80419.0,0.14752068]
[1731287227085,0.03,80420.0,80419.0,0.14252068]
[1731287227313,0.03,80420.0,80419.0,0.124348]
[1731287228232,0.03,80420.0,80419.0,0.251248]
[1731287228922,0.03,80431.0,80419.0,0.1269]
[1731287229071,0.03,80431.0,80430.0,0.124331]
[1731287229279,0.03879386,80431.0,80430.0,0.124331]
[1731287229474,0.03879386,80431.0,80427.0,0.24867]
[1731287229672,0.03879386,80431.0,80422.0,0.248687]
[1731287229878,0.03879386,80431.0,80429.0,0.124332]
[1731287230092,0.21613539,80430.0,80427.0,0.124334]
[1731287230341,0.21613539,80430.0,80419.0,0.1269]
[1731287230342,0.03,80425.0,80410.0,0.0457]
[1731287230553,0.03,80418.0,80411.0,0.18613539]
[1731287230774,0.03,80418.0,80405.0,0.0171846]
[1731287230775,0.03,80413.0,80406.0,0.124368]
[1731287230982,0.154358,80413.0,80406.0,0.124368]
[1731287231175,0.03,80411.0,80407.0,0.124366]
[1731287231390,0.03,80411.0,80405.0,0.0171846]
[1731287231531,0.03,80410.0,80409.0,0.124364]
[1731287232052,0.03,80406.0,80405.0,0.0171846]
[1731287232251,0.0387301,80406.0,80405.0,0.0171846]
[1731287232512,0.1630981,80406.0,80405.0,0.0171846]
[1731287232713,0.28904031,80406.0,80405.0,0.0171846]
[1731287235138,0.0387301,80406.0,80405.0,0.0171846]
[1731287235472,0.0387301,80406.0,80405.0,0.1415546]
[1731287235863,0.03,80406.0,80405.0,0.1415546]
[1731287236612,0.03,80406.0,80405.0,0.0171846]
[1731287236815,0.03574472,80406.0,80405.0,0.0171846]
[1731287237100,0.28605493,80406.0,80405.0,0.0171846]
[1731287237225,0.44611668,80406.0,80405.0,0.0171846]
[1731287237611,0.36555493,80406.0,80405.0,0.0171846]
[1731287238214,0.36555493,80406.0,80405.0,0.0071846]
[1731287239912,0.28605493,80406.0,80405.0,0.0071846]
[1731287243281,0.16168693,80406.0,80405.0,0.0071846]
[1731287243483,0.03574472,80406.0,80405.0,0.0071846]
[1731287243647,0.03,80406.0,80405.0,0.0071846]
[1731287243848,0.03574535,80406.0,80405.0,0.0071846]
[1731287244046,0.03574535,80406.0,80405.0,0.1315546]
[1731287244563,0.03574535,80406.0,80405.0,0.0071846]
[1731287244784,0.16011335,80406.0,80405.0,0.0071846]
[1731287245168,0.03574535,80406.0,80405.0,0.0071846]
[1731287246566,0.03574535,80406.0,80405.0,0.0080276]
[1731287247563,0.00574535,80406.0,80405.0,0.0080276]
[1731287248039,0.03,80408.0,80405.0,0.0080276]
[1731287248190,0.03,80408.0,80407.0,0.124367]
[1731287248629,0.03,80408.0,80407.0,0.17625407]
[1731287248825,0.03,80408.0,80407.0,0.286267]
[1731287249027,0.03,80408.0,80407.0,0.42720921]
[1731287249279,0.18613539,80425.0,80424.0,0.20374]
[1731287249598,0.001684,80429.0,80428.0,0.154334]
[1731287250840,0.001684,80429.0,80428.0,0.15682038]
[1731287251249,0.001684,80429.0,80428.0,0.15882038]
[1731287251655,0.03,80431.0,80430.0,0.261331]
[1731287252611,0.025,80431.0,80430.0,0.254331]
[1731287252817,0.025,80431.0,80430.0,0.154331]
[1731287253396,0.0308078,80431.0,80430.0,0.154331]
[1731287253533,0.025,80438.0,80432.0,0.124327]
[1731287253773,0.025,80438.0,80434.0,0.124324]
[1731287253967,0.00581911,80437.0,80435.0,0.154323]
[1731287254372,0.00581911,80437.0,80436.0,0.154322]
[1731287254591,0.03081911,80437.0,80436.0,0.03]
[1731287255314,0.03081911,80437.0,80436.0,0.154322]
[1731287255967,0.025,80437.0,80436.0,0.154322]
[1731287256566,0.005,80441.0,80436.0,0.03]
[1731287256775,0.005,80441.0,80440.0,0.03]
[1731287257210,0.005,80441.0,80427.0,0.124335]
[1731287257414,0.005,80431.0,80428.0,0.18613539]
[1731287257822,0.005,80449.0,80418.0,0.18613539]
[1731287257823,0.005,80446.0,80440.0,0.124314]
[1731287257945,0.18613539,80439.0,80438.0,0.124319]
[1731287258177,0.25025121,80445.0,80438.0,0.124319]
[1731287258178,0.25525121,80445.0,80438.0,0.124317]
[1731287258383,0.005,80443.0,80436.0,0.248643]
[1731287258605,0.005,80435.0,80432.0,0.124327]
[1731287258849,0.005,80435.0,80431.0,0.12433]
[1731287259055,0.005,80435.0,80430.0,0.248663]
[1731287259265,0.1,80451.0,80432.0,0.248657]
[1731287259468,0.18613539,80443.0,80442.0,0.124313]
[1731287259706,0.18613539,80443.0,80438.0,0.248637]
[1731287259913,0.005,80447.0,80441.0,0.124314]
[1731287260116,0.005,80443.0,80441.0,0.124314]
[1731287260337,0.005,80443.0,80440.0,0.124315]
[1731287260538,0.129308,80445.0,80440.0,0.124315]
[1731287260913,0.005,80443.0,80439.0,0.124317]
[1731287261323,0.005,80443.0,80438.0,0.124317]
[1731287261494,0.124304,80448.0,80442.0,0.124311]
[1731287261695,0.12594221,80449.0,80430.0,0.00248625]
[1731287261696,0.25024421,80449.0,80430.0,0.00248625]
[1731287262055,0.25024421,80449.0,80431.0,0.12433]
[1731287262056,0.248604,80449.0,80431.0,0.12433]
[1731287262322,0.248623,80443.0,80429.0,0.248666]
[1731287262523,0.19113539,80445.0,80430.0,0.18613539]
[1731287262709,0.19113539,80445.0,80430.0,0.124331]
[1731287262710,0.124323,80436.0,80430.0,0.124331]
[1731287262918,0.124323,80436.0,80427.0,0.0275575]
[1731287263120,0.124315,80441.0,80429.0,0.248665]
[1731287263260,0.124315,80441.0,80430.0,0.372994]
[1731287263461,0.248626,80442.0,80430.0,0.248663]
[1731287263663,0.248629,80441.0,80433.0,0.124325]
[1731287263897,0.005,80442.0,80424.0,0.02758977]
[1731287264102,0.124327,80433.0,80423.0,0.248685]
[1731287264302,0.124327,80433.0,80414.0,0.14166831]
[1731287264303,0.12433,80431.0,80414.0,0.24871]
[1731287264616,0.253663,80430.0,80418.0,0.124348]
[1731287264801,0.12434,80425.0,80417.0,0.248703]
[1731287265017,0.124337,80427.0,80421.0,0.124344]
[1731287265211,0.00599431,80424.0,80421.0,0.124344]
[1731287265408,0.124337,80427.0,80421.0,0.124344]
[1731287265610,0.00599242,80423.0,80422.0,0.124344]
[1731287265808,0.124338,80426.0,80420.0,0.124346]
[1731287266030,0.13033542,80423.0,80418.0,0.124349]
[1731287266240,0.00599053,80422.0,80418.0,0.12435]
[1731287266443,0.00599053,80422.0,80410.0,0.1]
[1731287266444,0.248685,80423.0,80410.0,0.1]
[1731287266646,0.248666,80429.0,80412.0,0.248719]
[1731287266878,0.13033453,80422.0,80417.0,0.124351]
[1731287267085,0.124341,80424.0,80418.0,0.124349]
[1731287267683,0.00596376,80423.0,80416.0,0.124353]
[1731287267885,0.124337,80426.0,80412.0,0.14166831]
[1731287268042,0.00596753,80425.0,80420.0,0.124346]
[1731287268246,0.13030753,80425.0,80420.0,0.124346]
[1731287268464,0.13030753,80425.0,80418.0,0.2487]
[1731287268465,0.00596753,80425.0,80424.0,0.12434]
[1731287268671,0.005,80430.0,80410.0,0.02691131]
[1731287268891,0.248681,80424.0,80417.0,0.124351]
[1731287269090,0.00596376,80423.0,80418.0,0.124348]
[1731287269295,0.124341,80424.0,80419.0,0.124347]
[1731287269546,0.00596376,80423.0,80421.0,0.124345]
[1731287269738,0.248669,80428.0,80418.0,0.2487]
[1731287269891,0.00596187,80422.0,80420.0,0.124347]
[1731287270112,0.248669,80428.0,80418.0,0.2487]
[1731287270313,0.00595999,80421.0,80420.0,0.124347]
[1731287270518,0.124339,80426.0,80420.0,0.124347]
[1731287270718,0.00595999,80421.0,80420.0,0.124347]
[1731287270929,0.124327,80433.0,80420.0,0.124347]
[1731287270930,0.18613539,80433.0,80420.0,0.14166831]
[1731287271290,0.18613539,80433.0,80432.0,0.124328]
[1731287271624,0.005,80442.0,80427.0,0.14166831]
[1731287271831,0.005,80442.0,80439.0,0.124317]
[1731287272050,0.00599939,80441.0,80439.0,0.124317]
[1731287272251,0.00599939,80441.0,80437.0,0.12432]
[1731287272451,0.00599939,80441.0,80426.0,0.18613539]
[1731287272619,0.00599939,80441.0,80437.0,0.12432]
[1731287272827,0.00599939,80441.0,80435.0,0.248647]
[1731287273031,0.00599939,80441.0,80437.0,0.12432]
[1731287273230,0.00599939,80441.0,80438.0,0.124318]
[1731287273453,0.00599939,80441.0,80435.0,0.248645]
[1731287273683,0.00599939,80441.0,80433.0,0.248653]
[1731287274003,0.13031439,80441.0,80435.0,0.124323]
[1731287274227,0.00599939,80441.0,80424.0,0.248681]
[1731287274508,0.005,80442.0,80424.0,0.248681]
[1731287274509,0.005,80435.0,80429.0,0.124332]
[1731287274665,0.0859,80430.0,80414.0,0.248712]
[1731287274871,0.248672,80427.0,80416.0,0.18613539]
[1731287275107,0.124344,80422.0,80421.0,0.000841]
[1731287275310,0.1353173,80422.0,80421.0,0.000841]
[1731287276528,0.26125951,80422.0,80421.0,0.000841]
[1731287280665,0.0109733,80422.0,80421.0,0.000841]
[1731287281213,0.1353173,80422.0,80421.0,0.000841]
[1731287281525,0.0109733,80422.0,80421.0,0.000841]
[1731287281870,0.1353173,80422.0,80421.0,0.000841]
[1731287282079,0.26125951,80422.0,80421.0,0.000841]
[1731287283675,0.25625951,80422.0,80421.0,0.000841]
[1731287283922,0.0109733,80422.0,80421.0,0.000841]
[1731287284218,0.0059733,80422.0,80421.0,0.000841]
[1731287284713,0.00585452,80422.0,80421.0,0.000841]
[1731287284930,0.124341,80424.0,80421.0,0.000841]
[1731287285152,0.00585817,80422.0,80421.0,0.000841]
[1731287285346,0.24867,80428.0,80421.0,0.000841]
[1731287285347,0.005,80427.0,80421.0,0.000841]
[1731287285520,0.129332,80430.0,80421.0,0.000841]
[1731287285733,0.12433,80431.0,80422.0,0.124344]
[1731287286076,0.005,80432.0,80426.0,0.124336]
[1731287286199,0.129328,80432.0,80426.0,0.004336]
[1731287286396,0.12433,80431.0,80426.0,0.124337]
[1731287286667,0.12433,80431.0,80421.0,0.000841]
[1731287286668,0.005,80427.0,80421.0,0.000841]
[1731287286819,0.005,80427.0,80424.0,0.12434]
[1731287287159,0.124342,80424.0,80421.0,0.000841]
[1731287287699,0.12434,80425.0,80421.0,0.000841]
[1731287287909,0.005,80427.0,80421.0,0.000841]
[1731287288108,0.12434,80425.0,80421.0,0.000841]
[1731287288314,0.00586194,80424.0,80421.0,0.000841]
[1731287288730,0.00586194,80424.0,80423.0,0.124342]
[1731287288952,0.00586194,80424.0,80421.0,0.000841]
[1731287289164,0.124344,80422.0,80421.0,0.000841]
[1731287289534,0.0058711,80422.0,80421.0,0.000841]
[1731287289818,0.005,80427.0,80421.0,0.000841]
[1731287290035,0.18613539,80426.0,80421.0,0.000841]
[1731287290355,0.124343,80423.0,80421.0,0.000841]